[Event "Titled Tuesday Blitz April 11 Early 2023"]
[White "Larina, Maria"]
[Black "Estrada Nieto, Julian"]
[WhiteFideId "24113182"]
[BlackFideId "5101018"]
[WhiteElo "1848"]
[BlackElo "2161"]
[Result "0-1"]
[Round "03"]
[TimeControl "180+2"]
[Date "2023.04.11"]
[WhiteClock "0:00:18"]
[BlackClock "0:01:21"]

1. e4 {[%clk 0:03:00]}  e5 {[%clk 0:02:59]} 2. Nf3 {[%clk 0:02:59]}  Nc6 {[%clk 0:03:00]} 3. Nc3 {[%clk 0:03:00]}  Nf6 {[%clk 0:02:59]} 4. Bb5 {[%clk 0:03:00]}  Bb4 {[%clk 0:02:59]} 5. O-O {[%clk 0:03:00]}  Bxc3 {[%clk 0:02:57]} 6. bxc3 {[%clk 0:02:59]}  O-O {[%clk 0:02:57]} 7. Bxc6 {[%clk 0:02:54]}  dxc6 {[%clk 0:02:56]} 8. Nxe5 {[%clk 0:02:40]}  Re8 {[%clk 0:02:54]} 9. d4 {[%clk 0:02:31]}  Nxe4 {[%clk 0:02:53]} 10. Qf3 {[%clk 0:02:28]}  Nd6 {[%clk 0:02:51]} 11. Ba3 {[%clk 0:02:13]}  f6 {[%clk 0:02:51]} 12. Nd3 {[%clk 0:02:02]}  Be6 {[%clk 0:02:50]} 13. Nf4 {[%clk 0:01:59]}  Bc4 {[%clk 0:02:48]} 14. Rfe1 {[%clk 0:01:59]}  Qd7 {[%clk 0:02:47]} 15. Nh5 {[%clk 0:01:28]}  Rxe1+ {[%clk 0:02:31]} 16. Rxe1 {[%clk 0:01:27]}  Re8 {[%clk 0:02:31]} 17. Re3 {[%clk 0:01:07]}  Kf7 {[%clk 0:02:02]} 18. Nf4 {[%clk 0:00:59]}  Qf5 {[%clk 0:01:55]} 19. g4 {[%clk 0:00:40]}  Qxc2 {[%clk 0:01:52]} 20. Bxd6 {[%clk 0:00:33]}  Qc1+ {[%clk 0:01:50]} 21. Kg2 {[%clk 0:00:29]}  Qf1+ {[%clk 0:01:48]} 22. Kg3 {[%clk 0:00:29]}  Qg1+ {[%clk 0:01:45]} 23. Ng2 {[%clk 0:00:29]}  cxd6 {[%clk 0:01:42]} 24. Rxe8 {[%clk 0:00:27]}  Kxe8 {[%clk 0:01:42]} 25. g5 {[%clk 0:00:25]}  Bf1 {[%clk 0:01:39]} 26. gxf6 {[%clk 0:00:24]}  gxf6 {[%clk 0:01:29]} 27. Qe4+ {[%clk 0:00:17]}  Kf8 {[%clk 0:01:27]} 28. Qf3 {[%clk 0:00:17]}  Qxg2+ {[%clk 0:01:26]} 29. Qxg2 {[%clk 0:00:17]}  Bxg2 {[%clk 0:01:27]} 30. Kxg2 {[%clk 0:00:18]}  Kf7 {[%clk 0:01:27]} 31. Kf3 {[%clk 0:00:18]}  b5 {[%clk 0:01:27]} 32. Kf4 {[%clk 0:00:18]}  Ke6 {[%clk 0:01:27]} 33. f3 {[%clk 0:00:18]}  a5 {[%clk 0:01:27]} 34. h4 {[%clk 0:00:18]}  c5 {[%clk 0:01:27]} 35. h5 {[%clk 0:00:18]}  cxd4 {[%clk 0:01:23]} 36. cxd4 {[%clk 0:00:19]}  b4 {[%clk 0:01:24]} 37. Ke4 {[%clk 0:00:18]}  d5+ {[%clk 0:01:22]} 38. Kd3 {[%clk 0:00:18]}  Kf5 {[%clk 0:01:21]} 39. Ke3 {[%clk 0:00:18]}  a4 {[%clk 0:01:21]} 40. f4 {[%clk 0:00:17]}  b3 {[%clk 0:01:20]} 41. axb3 {[%clk 0:00:17]}  axb3 {[%clk 0:01:21]} 42. Kd3 {[%clk 0:00:18]}  Kxf4 {[%clk 0:01:21]} 0-1


[Site "https://www.chess.com"]

[Event "Titled Tuesday Blitz April 11 Early 2023"]
[White "Kiseleva, Arina"]
[Black "Inepton_Fermion"]
[WhiteFideId "4164989"]
[WhiteElo "1708"]
[BlackElo "2424"]
[Result "1-0"]
[Round "03"]
[TimeControl "180+2"]
[Date "2023.04.11"]
[WhiteClock "0:00:23"]
[BlackClock "0:00:01"]

1. d4 {[%clk 0:03:00]}  g6 {[%clk 0:02:59]} 2. Nf3 {[%clk 0:03:00]}  Bg7 {[%clk 0:02:47]} 3. c4 {[%clk 0:02:57]}  d6 {[%clk 0:02:46]} 4. Nc3 {[%clk 0:02:57]}  c5 {[%clk 0:02:45]} 5. e3 {[%clk 0:02:48]}  Nc6 {[%clk 0:02:38]} 6. Be2 {[%clk 0:02:47]}  Bg4 {[%clk 0:02:30]} 7. d5 {[%clk 0:02:40]}  Bxf3 {[%clk 0:02:23]} 8. Bxf3 {[%clk 0:02:35]}  Bxc3+ {[%clk 0:02:23]} 9. bxc3 {[%clk 0:02:33]}  Ne5 {[%clk 0:02:24]} 10. Be2 {[%clk 0:02:32]}  f5 {[%clk 0:02:24]} 11. Qb3 {[%clk 0:02:27]}  Nf6 {[%clk 0:02:09]} 12. Bd2 {[%clk 0:02:18]}  O-O {[%clk 0:02:07]} 13. h4 {[%clk 0:02:10]}  Rb8 {[%clk 0:01:53]} 14. h5 {[%clk 0:02:04]}  g5 {[%clk 0:01:50]} 15. f4 {[%clk 0:02:00]}  gxf4 {[%clk 0:01:49]} 16. exf4 {[%clk 0:01:59]}  Neg4 {[%clk 0:01:50]} 17. Qc2 {[%clk 0:01:50]}  Qd7 {[%clk 0:01:27]} 18. Bd3 {[%clk 0:01:50]}  e6 {[%clk 0:01:26]} 19. O-O-O {[%clk 0:01:41]}  exd5 {[%clk 0:01:17]} 20. Bxf5 {[%clk 0:01:39]}  Qf7 {[%clk 0:00:57]} 21. cxd5 {[%clk 0:01:28]}  Qxd5 {[%clk 0:00:52]} 22. c4 {[%clk 0:01:26]}  Qd4 {[%clk 0:00:38]} 23. Be6+ {[%clk 0:01:25]}  Kh8 {[%clk 0:00:37]} 24. Bxg4 {[%clk 0:01:23]}  Qa1+ {[%clk 0:00:34]} 25. Qb1 {[%clk 0:01:20]}  Qxb1+ {[%clk 0:00:34]} 26. Kxb1 {[%clk 0:01:21]}  Nxg4 {[%clk 0:00:34]} 27. Bc3+ {[%clk 0:01:20]}  Kg8 {[%clk 0:00:30]} 28. Rxd6 {[%clk 0:01:14]}  Rxf4 {[%clk 0:00:28]} 29. Rd7 {[%clk 0:01:11]}  Rf7 {[%clk 0:00:21]} 30. Rhd1 {[%clk 0:01:11]}  Rbf8 {[%clk 0:00:20]} 31. R7d5 {[%clk 0:01:00]}  Rf5 {[%clk 0:00:14]} 32. Rd7 {[%clk 0:00:39]}  R5f7 {[%clk 0:00:10]} 33. Rxf7 {[%clk 0:00:28]}  Rxf7 {[%clk 0:00:08]} 34. Rd8+ {[%clk 0:00:29]}  Rf8 {[%clk 0:00:08]} 35. Rd7 {[%clk 0:00:29]}  Rf7 {[%clk 0:00:06]} 36. Rd8+ {[%clk 0:00:30]}  Rf8 {[%clk 0:00:06]} 37. Rd7 {[%clk 0:00:28]}  Rf7 {[%clk 0:00:04]} 38. Rd5 {[%clk 0:00:27]}  b6 {[%clk 0:00:03]} 39. Rg5+ {[%clk 0:00:27]}  Kf8 {[%clk 0:00:04]} 40. Rxg4 {[%clk 0:00:27]}  Rf5 {[%clk 0:00:02]} 41. h6 {[%clk 0:00:27]}  Rf2 {[%clk 0:00:02]} 42. Bg7+ {[%clk 0:00:26]}  Kf7 {[%clk 0:00:02]} 43. g3 {[%clk 0:00:24]}  Ke6 {[%clk 0:00:01]} 44. Rf4 {[%clk 0:00:23]} 1-0


[Site "https://www.chess.com"]

[Event "Titled Tuesday Blitz April 11 Early 2023"]
[White "Sargissyan, Sargis"]
[Black "FuenfgegenWilly"]
[WhiteFideId "13303210"]
[WhiteElo "2109"]
[BlackElo "2215"]
[Result "1-0"]
[Round "03"]
[TimeControl "180+2"]
[Date "2023.04.11"]
[WhiteClock "0:00:18"]
[BlackClock "0:01:06"]

1. e4 {[%clk 0:02:57]}  e5 {[%clk 0:02:58]} 2. Nf3 {[%clk 0:02:57]}  Nc6 {[%clk 0:02:59]} 3. Bb5 {[%clk 0:02:56]}  a6 {[%clk 0:02:59]} 4. Ba4 {[%clk 0:02:57]}  d6 {[%clk 0:03:00]} 5. c3 {[%clk 0:02:56]}  Bd7 {[%clk 0:02:59]} 6. d4 {[%clk 0:02:56]}  Be7 {[%clk 0:02:58]} 7. d5 {[%clk 0:02:55]}  Nb8 {[%clk 0:02:59]} 8. c4 {[%clk 0:02:55]}  h6 {[%clk 0:02:58]} 9. Nc3 {[%clk 0:02:55]}  Bg5 {[%clk 0:02:58]} 10. O-O {[%clk 0:02:45]}  Qf6 {[%clk 0:02:58]} 11. Be3 {[%clk 0:02:40]}  Ne7 {[%clk 0:02:51]} 12. c5 {[%clk 0:02:33]}  Bxe3 {[%clk 0:02:51]} 13. fxe3 {[%clk 0:02:32]}  dxc5 {[%clk 0:02:47]} 14. Nd4 {[%clk 0:02:15]}  Qg6 {[%clk 0:02:40]} 15. Bxd7+ {[%clk 0:02:12]}  Nxd7 {[%clk 0:02:39]} 16. Nf5 {[%clk 0:02:11]}  Nxf5 {[%clk 0:02:37]} 17. Rxf5 {[%clk 0:02:07]}  O-O {[%clk 0:02:29]} 18. Qf3 {[%clk 0:01:55]}  b5 {[%clk 0:02:26]} 19. Rd1 {[%clk 0:01:46]}  Qd6 {[%clk 0:02:25]} 20. Rf1 {[%clk 0:01:42]}  f6 {[%clk 0:02:24]} 21. h4 {[%clk 0:01:34]}  c4 {[%clk 0:02:23]} 22. Qh5 {[%clk 0:01:18]}  Kh7 {[%clk 0:02:20]} 23. R5f3 {[%clk 0:01:15]}  Qe7 {[%clk 0:02:11]} 24. Rg3 {[%clk 0:01:12]}  Qf7 {[%clk 0:02:10]} 25. Qf5+ {[%clk 0:01:12]}  Kh8 {[%clk 0:02:09]} 26. Rgf3 {[%clk 0:00:59]}  Nc5 {[%clk 0:02:03]} 27. Qxe5 {[%clk 0:00:55]}  Nd3 {[%clk 0:01:59]} 28. Qd4 {[%clk 0:00:49]}  Qe7 {[%clk 0:01:58]} 29. Ne2 {[%clk 0:00:31]}  Ne5 {[%clk 0:01:58]} 30. Rf4 {[%clk 0:00:29]}  Ng6 {[%clk 0:01:56]} 31. Rg4 {[%clk 0:00:27]}  Ne5 {[%clk 0:01:54]} 32. Rg3 {[%clk 0:00:26]}  c5 {[%clk 0:01:52]} 33. Qd2 {[%clk 0:00:23]}  Nd3 {[%clk 0:01:51]} 34. Rg4 {[%clk 0:00:18]}  Rae8 {[%clk 0:01:49]} 35. Nf4 {[%clk 0:00:17]}  Kh7 {[%clk 0:01:35]} 36. Ng6 {[%clk 0:00:17]}  Qd6 {[%clk 0:01:34]} 37. Nxf8+ {[%clk 0:00:17]}  Rxf8 {[%clk 0:01:34]} 38. Qe2 {[%clk 0:00:15]}  Qe5 {[%clk 0:01:34]} 39. Qf3 {[%clk 0:00:15]}  Nxb2 {[%clk 0:01:26]} 40. Rf4 {[%clk 0:00:16]}  c3 {[%clk 0:01:19]} 41. Rf5 {[%clk 0:00:16]}  Qe7 {[%clk 0:01:18]} 42. e5 {[%clk 0:00:16]}  c2 {[%clk 0:01:14]} 43. Qe4 {[%clk 0:00:16]}  Nc4 {[%clk 0:01:12]} 44. Rxf6+ {[%clk 0:00:16]}  Kg8 {[%clk 0:01:08]} 45. Rxf8+ {[%clk 0:00:16]}  Qxf8 {[%clk 0:01:09]} 46. Rxf8+ {[%clk 0:00:17]}  Kxf8 {[%clk 0:01:10]} 47. Qxc2 {[%clk 0:00:17]}  Nxe3 {[%clk 0:01:10]} 48. Qe4 {[%clk 0:00:17]}  Nc4 {[%clk 0:01:07]} 49. e6 {[%clk 0:00:18]}  Ke7 {[%clk 0:01:06]} 50. Qg6 {[%clk 0:00:18]}  Ne5 {[%clk 0:01:03]} 51. Qxg7+ {[%clk 0:00:18]}  Kd6 {[%clk 0:01:04]} 52. Qxe5+ {[%clk 0:00:18]}  Kxe5 {[%clk 0:01:04]} 53. e7 {[%clk 0:00:18]}  c4 {[%clk 0:01:05]} 54. e8=Q+ {[%clk 0:00:19]}  Kxd5 {[%clk 0:01:05]} 55. Qd7+ {[%clk 0:00:17]}  Kc5 {[%clk 0:01:05]} 56. g4 {[%clk 0:00:17]}  c3 {[%clk 0:01:05]} 57. g5 {[%clk 0:00:18]}  hxg5 {[%clk 0:01:05]} 58. hxg5 {[%clk 0:00:17]}  c2 {[%clk 0:01:06]} 59. Qc7+ {[%clk 0:00:18]} 1-0


[Site "https://www.chess.com"]

[Event "Titled Tuesday Blitz April 11 Early 2023"]
[White "Kowalysko, Roman"]
[Black "DIM90"]
[WhiteFideId "30918510"]
[WhiteElo "2176"]
[BlackElo "2407"]
[Result "1/2-1/2"]
[Round "03"]
[TimeControl "180+2"]
[Date "2023.04.11"]
[WhiteClock "0:01:11"]
[BlackClock "0:01:22"]

1. e4 {[%clk 0:03:00]}  e5 {[%clk 0:03:00]} 2. Nc3 {[%clk 0:02:59]}  Nf6 {[%clk 0:03:00]} 3. Nf3 {[%clk 0:02:59]}  Bb4 {[%clk 0:03:00]} 4. Nxe5 {[%clk 0:02:58]}  O-O {[%clk 0:03:00]} 5. Be2 {[%clk 0:02:48]}  Re8 {[%clk 0:02:58]} 6. Nd3 {[%clk 0:02:48]}  Bxc3 {[%clk 0:02:58]} 7. dxc3 {[%clk 0:02:47]}  Nxe4 {[%clk 0:02:59]} 8. O-O {[%clk 0:02:45]}  d5 {[%clk 0:02:59]} 9. Nf4 {[%clk 0:02:44]}  c6 {[%clk 0:02:59]} 10. Be3 {[%clk 0:02:42]}  Bf5 {[%clk 0:02:53]} 11. c4 {[%clk 0:02:41]}  dxc4 {[%clk 0:02:51]} 12. Bxc4 {[%clk 0:02:40]}  Nd7 {[%clk 0:02:50]} 13. Qh5 {[%clk 0:02:36]}  Qf6 {[%clk 0:02:45]} 14. Bd4 {[%clk 0:02:33]}  Qxd4 {[%clk 0:02:29]} 15. Qxf7+ {[%clk 0:02:28]}  Kh8 {[%clk 0:02:27]} 16. Qxf5 {[%clk 0:02:19]}  Re5 {[%clk 0:02:19]} 17. Qf7 {[%clk 0:01:58]}  Rf8 {[%clk 0:02:13]} 18. Rad1 {[%clk 0:01:58]}  Rxf7 {[%clk 0:01:59]} 19. Rxd4 {[%clk 0:01:57]}  Rxf4 {[%clk 0:01:59]} 20. Rxd7 {[%clk 0:01:56]}  h6 {[%clk 0:01:51]} 21. Bd3 {[%clk 0:01:50]}  Rf8 {[%clk 0:01:39]} 22. Bxe4 {[%clk 0:01:47]}  Rxe4 {[%clk 0:01:39]} 23. Rxb7 {[%clk 0:01:47]}  Re2 {[%clk 0:01:38]} 24. Rxa7 {[%clk 0:01:46]}  Rxc2 {[%clk 0:01:38]} 25. b3 {[%clk 0:01:46]}  c5 {[%clk 0:01:36]} 26. g3 {[%clk 0:01:43]}  Rd8 {[%clk 0:01:31]} 27. Kg2 {[%clk 0:01:35]}  Rdd2 {[%clk 0:01:30]} 28. Ra5 {[%clk 0:01:31]}  c4 {[%clk 0:01:30]} 29. bxc4 {[%clk 0:01:31]}  Rxc4 {[%clk 0:01:31]} 30. Ra1 {[%clk 0:01:25]}  Rcc2 {[%clk 0:01:30]} 31. Rf5 {[%clk 0:01:25]}  Rxa2 {[%clk 0:01:28]} 32. Rxa2 {[%clk 0:01:26]}  Rxa2 {[%clk 0:01:29]} 33. Rb5 {[%clk 0:01:24]}  Ra7 {[%clk 0:01:29]} 34. h3 {[%clk 0:01:24]}  Kh7 {[%clk 0:01:30]} 35. Rb2 {[%clk 0:01:23]}  h5 {[%clk 0:01:30]} 36. f4 {[%clk 0:01:24]}  Kh6 {[%clk 0:01:29]} 37. Rb3 {[%clk 0:01:24]}  Ra6 {[%clk 0:01:30]} 38. Kf3 {[%clk 0:01:24]}  Re6 {[%clk 0:01:30]} 39. g4 {[%clk 0:01:24]}  hxg4+ {[%clk 0:01:30]} 40. hxg4 {[%clk 0:01:25]}  Rc6 {[%clk 0:01:30]} 41. Ra3 {[%clk 0:01:24]}  Kh7 {[%clk 0:01:30]} 42. Ra4 {[%clk 0:01:24]}  Rb6 {[%clk 0:01:30]} 43. Ke4 {[%clk 0:01:24]}  Re6+ {[%clk 0:01:30]} 44. Kf5 {[%clk 0:01:24]}  Rf6+ {[%clk 0:01:31]} 45. Kg5 {[%clk 0:01:23]}  Rg6+ {[%clk 0:01:31]} 46. Kh4 {[%clk 0:01:23]}  Rh6+ {[%clk 0:01:31]} 47. Kg3 {[%clk 0:01:24]}  Rb6 {[%clk 0:01:32]} 48. g5 {[%clk 0:01:22]}  Kg6 {[%clk 0:01:31]} 49. Kg4 {[%clk 0:01:22]}  Rb1 {[%clk 0:01:29]} 50. f5+ {[%clk 0:01:22]}  Kh7 {[%clk 0:01:29]} 51. Ra3 {[%clk 0:01:21]}  Rg1+ {[%clk 0:01:29]} 52. Rg3 {[%clk 0:01:21]}  Ra1 {[%clk 0:01:29]} 53. g6+ {[%clk 0:01:20]}  Kg8 {[%clk 0:01:28]} 54. Rb3 {[%clk 0:01:17]}  Ra8 {[%clk 0:01:28]} 55. Kg5 {[%clk 0:01:17]}  Rc8 {[%clk 0:01:29]} 56. Rb7 {[%clk 0:01:18]}  Rd8 {[%clk 0:01:29]} 57. Ra7 {[%clk 0:01:18]}  Rc8 {[%clk 0:01:29]} 58. Rd7 {[%clk 0:01:18]}  Re8 {[%clk 0:01:29]} 59. Rc7 {[%clk 0:01:16]}  Rb8 {[%clk 0:01:30]} 60. Ra7 {[%clk 0:01:16]}  Rc8 {[%clk 0:01:30]} 61. f6 {[%clk 0:01:16]}  Rc5+ {[%clk 0:01:29]} 62. Kf4 {[%clk 0:01:17]}  gxf6 {[%clk 0:01:28]} 63. Rf7 {[%clk 0:01:17]}  Rc6 {[%clk 0:01:26]} 64. Kf5 {[%clk 0:01:16]}  Ra6 {[%clk 0:01:23]} 65. Rxf6 {[%clk 0:01:12]}  Rxf6+ {[%clk 0:01:22]} 66. Kxf6 {[%clk 0:01:12]}  Kf8 {[%clk 0:01:22]} 67. g7+ {[%clk 0:01:12]}  Kg8 {[%clk 0:01:23]} 68. Ke7 {[%clk 0:01:11]}  Kxg7 {[%clk 0:01:22]} 1/2-1/2


[Site "https://www.chess.com"]

[Event "Titled Tuesday Blitz April 11 Early 2023"]
[White "rionelG"]
[Black "Van Osch, Mees"]
[BlackFideId "1035967"]
[WhiteElo "2174"]
[BlackElo "2324"]
[Result "0-1"]
[Round "03"]
[TimeControl "180+2"]
[Date "2023.04.11"]
[WhiteClock "0:00:04"]
[BlackClock "0:00:16"]

1. e4 {[%clk 0:03:00]}  c5 {[%clk 0:02:56]} 2. g3 {[%clk 0:03:01]}  b6 {[%clk 0:02:55]} 3. Bg2 {[%clk 0:03:01]}  Bb7 {[%clk 0:02:56]} 4. d3 {[%clk 0:03:01]}  g6 {[%clk 0:02:55]} 5. Nf3 {[%clk 0:03:00]}  Bg7 {[%clk 0:02:56]} 6. O-O {[%clk 0:03:01]}  d5 {[%clk 0:02:56]} 7. Nbd2 {[%clk 0:02:57]}  Nf6 {[%clk 0:02:56]} 8. Re1 {[%clk 0:02:49]}  dxe4 {[%clk 0:02:56]} 9. Ng5 {[%clk 0:02:49]}  O-O {[%clk 0:02:55]} 10. Ngxe4 {[%clk 0:02:47]}  Nxe4 {[%clk 0:02:55]} 11. Nxe4 {[%clk 0:02:47]}  Nc6 {[%clk 0:02:55]} 12. h4 {[%clk 0:02:40]}  Qd7 {[%clk 0:02:52]} 13. h5 {[%clk 0:02:39]}  Rad8 {[%clk 0:02:52]} 14. hxg6 {[%clk 0:02:31]}  hxg6 {[%clk 0:02:45]} 15. Bg5 {[%clk 0:02:31]}  Bxb2 {[%clk 0:02:41]} 16. Bh6 {[%clk 0:01:41]}  Rfe8 {[%clk 0:02:29]} 17. Rb1 {[%clk 0:01:22]}  Bg7 {[%clk 0:02:28]} 18. Qc1 {[%clk 0:01:13]}  Qf5 {[%clk 0:02:12]} 19. Bxg7 {[%clk 0:00:35]}  Kxg7 {[%clk 0:02:10]} 20. Qa3 {[%clk 0:00:35]}  Rh8 {[%clk 0:01:44]} 21. Nxc5 {[%clk 0:00:25]}  Ba8 {[%clk 0:00:50]} 22. Qc3+ {[%clk 0:00:19]}  Nd4 {[%clk 0:00:48]} 23. Nb3 {[%clk 0:00:16]}  Qh5 {[%clk 0:00:36]} 24. Re4 {[%clk 0:00:11]}  Bxe4 {[%clk 0:00:21]} 25. Bxe4 {[%clk 0:00:10]}  e5 {[%clk 0:00:20]} 26. Nxd4 {[%clk 0:00:09]}  exd4 {[%clk 0:00:20]} 27. Qc7 {[%clk 0:00:05]}  Rde8 {[%clk 0:00:17]} 28. Qd6 {[%clk 0:00:04]}  Rxe4 {[%clk 0:00:16]} 0-1


[Site "https://www.chess.com"]

[Event "Titled Tuesday Blitz April 11 Early 2023"]
[White "Ronka, Erik"]
[Black "Baruch, Liam"]
[WhiteFideId "505080"]
[BlackFideId "14322064"]
[WhiteElo "2264"]
[BlackElo "2166"]
[Result "1-0"]
[Round "03"]
[TimeControl "180+2"]
[Date "2023.04.11"]
[WhiteClock "0:00:16"]
[BlackClock "0:00:05"]

1. a3 {[%clk 0:01:59]}  d5 {[%clk 0:02:57]} 2. c4 {[%clk 0:01:58]}  Nf6 {[%clk 0:02:56]} 3. cxd5 {[%clk 0:01:57]}  Nxd5 {[%clk 0:02:54]} 4. e4 {[%clk 0:01:57]}  Nf6 {[%clk 0:02:48]} 5. Nf3 {[%clk 0:01:50]}  Nc6 {[%clk 0:02:26]} 6. d4 {[%clk 0:01:45]}  Bg4 {[%clk 0:02:18]} 7. d5 {[%clk 0:01:41]}  Ne5 {[%clk 0:02:08]} 8. Qb3 {[%clk 0:01:28]}  Bxf3 {[%clk 0:01:44]} 9. gxf3 {[%clk 0:01:28]}  Rb8 {[%clk 0:01:30]} 10. f4 {[%clk 0:01:27]}  Ng6 {[%clk 0:01:24]} 11. f5 {[%clk 0:01:24]}  Ne5 {[%clk 0:01:20]} 12. Bf4 {[%clk 0:01:22]}  Neg4 {[%clk 0:01:01]} 13. Bb5+ {[%clk 0:01:03]}  Nd7 {[%clk 0:00:58]} 14. Rg1 {[%clk 0:01:02]}  Nf6 {[%clk 0:00:49]} 15. e5 {[%clk 0:01:02]}  Nxd5 {[%clk 0:00:45]} 16. e6 {[%clk 0:01:00]}  c6 {[%clk 0:00:35]} 17. Bxb8 {[%clk 0:01:00]}  Nxb8 {[%clk 0:00:32]} 18. Bc4 {[%clk 0:00:41]}  fxe6 {[%clk 0:00:26]} 19. fxe6 {[%clk 0:00:40]}  Qb6 {[%clk 0:00:23]} 20. Bxd5 {[%clk 0:00:31]}  cxd5 {[%clk 0:00:20]} 21. Qxb6 {[%clk 0:00:32]}  axb6 {[%clk 0:00:20]} 22. Nc3 {[%clk 0:00:33]}  Nc6 {[%clk 0:00:17]} 23. Nxd5 {[%clk 0:00:32]}  Nd4 {[%clk 0:00:17]} 24. O-O-O {[%clk 0:00:26]}  Ne2+ {[%clk 0:00:17]} 25. Kc2 {[%clk 0:00:25]}  Kd8 {[%clk 0:00:09]} 26. Nf4+ {[%clk 0:00:14]}  Kc8 {[%clk 0:00:06]} 27. Nxe2 {[%clk 0:00:15]}  g6 {[%clk 0:00:06]} 28. Rd7 {[%clk 0:00:16]}  Rg8 {[%clk 0:00:05]} 29. Rgd1 {[%clk 0:00:16]}  Rg7 {[%clk 0:00:05]} 30. Rd8+ {[%clk 0:00:16]} 1-0


[Site "https://www.chess.com"]

[Event "Titled Tuesday Blitz April 11 Early 2023"]
[White "Halldorsson, Halldor"]
[Black "dDobravcan"]
[WhiteFideId "2301369"]
[WhiteElo "2190"]
[BlackElo "2150"]
[Result "1-0"]
[Round "03"]
[TimeControl "180+2"]
[Date "2023.04.11"]
[WhiteClock "0:00:59"]
[BlackClock "0:00:07"]

1. e4 {[%clk 0:03:00]}  d6 {[%clk 0:02:59]} 2. d4 {[%clk 0:03:00]}  Nf6 {[%clk 0:02:59]} 3. Nc3 {[%clk 0:03:01]}  c6 {[%clk 0:02:59]} 4. h3 {[%clk 0:03:01]}  Qa5 {[%clk 0:02:57]} 5. Bd2 {[%clk 0:02:58]}  Qb6 {[%clk 0:02:56]} 6. Nge2 {[%clk 0:02:54]}  Qxb2 {[%clk 0:02:54]} 7. Rb1 {[%clk 0:02:54]}  Qa3 {[%clk 0:02:54]} 8. g4 {[%clk 0:02:55]}  e5 {[%clk 0:02:48]} 9. Bg2 {[%clk 0:02:53]}  exd4 {[%clk 0:02:40]} 10. Nxd4 {[%clk 0:02:54]}  Qc5 {[%clk 0:02:39]} 11. Nb3 {[%clk 0:02:51]}  Qc4 {[%clk 0:02:27]} 12. Bf1 {[%clk 0:02:39]}  Qb4 {[%clk 0:02:21]} 13. Bd3 {[%clk 0:02:18]}  Qb6 {[%clk 0:02:14]} 14. O-O {[%clk 0:02:14]}  Be7 {[%clk 0:02:01]} 15. Be3 {[%clk 0:02:14]}  Qc7 {[%clk 0:01:59]} 16. f4 {[%clk 0:02:12]}  Na6 {[%clk 0:01:44]} 17. Qf3 {[%clk 0:02:07]}  h5 {[%clk 0:01:34]} 18. g5 {[%clk 0:01:59]}  Nd7 {[%clk 0:01:34]} 19. Bd4 {[%clk 0:02:00]}  h4 {[%clk 0:00:55]} 20. Bxg7 {[%clk 0:01:56]}  Rg8 {[%clk 0:00:56]} 21. Bd4 {[%clk 0:01:55]}  Ndc5 {[%clk 0:00:54]} 22. Kg2 {[%clk 0:01:41]}  Be6 {[%clk 0:00:51]} 23. Nxc5 {[%clk 0:01:29]}  Nxc5 {[%clk 0:00:37]} 24. f5 {[%clk 0:01:22]}  Rxg5+ {[%clk 0:00:31]} 25. Kh1 {[%clk 0:01:23]}  Rg3 {[%clk 0:00:27]} 26. Qh5 {[%clk 0:01:18]}  Rxh3+ {[%clk 0:00:26]} 27. Kg1 {[%clk 0:01:18]}  Rg3+ {[%clk 0:00:26]} 28. Kf2 {[%clk 0:01:19]}  Bd7 {[%clk 0:00:17]} 29. f6 {[%clk 0:01:09]}  Bf8 {[%clk 0:00:14]} 30. Qxh4 {[%clk 0:01:09]}  Rg8 {[%clk 0:00:12]} 31. Qf4 {[%clk 0:01:10]}  O-O-O {[%clk 0:00:10]} 32. Rg1 {[%clk 0:01:03]}  Ne6 {[%clk 0:00:09]} 33. Qe3 {[%clk 0:01:01]}  Nxd4 {[%clk 0:00:07]} 34. Rxg8 {[%clk 0:00:59]} 1-0


[Site "https://www.chess.com"]

[Event "Titled Tuesday Blitz April 11 Early 2023"]
[White "Krzywda, Andrzej"]
[Black "Vargas Rodriguez, Wilver"]
[WhiteFideId "1114565"]
[BlackFideId "3509672"]
[WhiteElo "2155"]
[BlackElo "2224"]
[Result "1-0"]
[Round "03"]
[TimeControl "180+2"]
[Date "2023.04.11"]
[WhiteClock "0:00:43"]
[BlackClock "0:00:06"]

1. c4 {[%clk 0:03:00]}  Nf6 {[%clk 0:02:58]} 2. g3 {[%clk 0:03:01]}  c5 {[%clk 0:02:57]} 3. Bg2 {[%clk 0:03:00]}  Nc6 {[%clk 0:02:57]} 4. Nc3 {[%clk 0:03:00]}  g6 {[%clk 0:02:57]} 5. Nf3 {[%clk 0:02:57]}  e5 {[%clk 0:02:56]} 6. d3 {[%clk 0:02:56]}  Bg7 {[%clk 0:02:56]} 7. O-O {[%clk 0:02:56]}  O-O {[%clk 0:02:55]} 8. a3 {[%clk 0:02:56]}  d6 {[%clk 0:02:54]} 9. b4 {[%clk 0:02:49]}  cxb4 {[%clk 0:02:39]} 10. axb4 {[%clk 0:02:50]}  Nxb4 {[%clk 0:02:38]} 11. Ba3 {[%clk 0:02:50]}  Nc6 {[%clk 0:02:34]} 12. Nb5 {[%clk 0:02:49]}  Ne8 {[%clk 0:02:30]} 13. Ne1 {[%clk 0:02:39]}  a6 {[%clk 0:02:30]} 14. Bb2 {[%clk 0:02:30]}  Bg4 {[%clk 0:01:51]} 15. Nc3 {[%clk 0:02:27]}  Nd4 {[%clk 0:01:46]} 16. h3 {[%clk 0:02:25]}  Be6 {[%clk 0:01:33]} 17. Nc2 {[%clk 0:02:25]}  Nb3 {[%clk 0:01:31]} 18. Rb1 {[%clk 0:02:23]}  Rb8 {[%clk 0:01:26]} 19. Ne3 {[%clk 0:02:22]}  Qd7 {[%clk 0:01:22]} 20. Qxb3 {[%clk 0:02:21]}  b5 {[%clk 0:01:20]} 21. Qc2 {[%clk 0:02:17]}  Bxh3 {[%clk 0:01:18]} 22. Ncd5 {[%clk 0:02:14]}  Bxg2 {[%clk 0:01:03]} 23. Kxg2 {[%clk 0:02:14]}  f5 {[%clk 0:01:02]} 24. f4 {[%clk 0:02:11]}  bxc4 {[%clk 0:00:53]} 25. Qxc4 {[%clk 0:02:03]}  Kh8 {[%clk 0:00:51]} 26. Rh1 {[%clk 0:01:40]}  Rb5 {[%clk 0:00:37]} 27. Ba1 {[%clk 0:01:28]}  Rc5 {[%clk 0:00:35]} 28. Qa2 {[%clk 0:01:26]}  Qc6 {[%clk 0:00:32]} 29. Kf2 {[%clk 0:01:19]}  exf4 {[%clk 0:00:19]} 30. Nxf4 {[%clk 0:01:09]}  d5 {[%clk 0:00:17]} 31. Bxg7+ {[%clk 0:01:03]}  Nxg7 {[%clk 0:00:14]} 32. d4 {[%clk 0:00:58]}  Rc4 {[%clk 0:00:11]} 33. Nxc4 {[%clk 0:00:55]}  dxc4 {[%clk 0:00:12]} 34. Qa3 {[%clk 0:00:46]}  Qd6 {[%clk 0:00:06]} 35. Qxd6 {[%clk 0:00:43]}  Re8 {[%clk 0:00:06]} 1-0


[Site "https://www.chess.com"]

[Event "Titled Tuesday Blitz April 11 Early 2023"]
[White "Okike, David"]
[Black "Munro, Allan"]
[WhiteFideId "8500134"]
[BlackFideId "7700245"]
[WhiteElo "2232"]
[BlackElo "2084"]
[Result "1-0"]
[Round "03"]
[TimeControl "180+2"]
[Date "2023.04.11"]
[WhiteClock "0:00:59"]
[BlackClock "0:00:08"]

1. e4 {[%clk 0:02:56]}  e5 {[%clk 0:02:59]} 2. Nf3 {[%clk 0:02:55]}  Nc6 {[%clk 0:03:00]} 3. Bc4 {[%clk 0:02:54]}  Nf6 {[%clk 0:02:59]} 4. d3 {[%clk 0:02:54]}  Bc5 {[%clk 0:02:55]} 5. c3 {[%clk 0:02:54]}  d6 {[%clk 0:02:55]} 6. Bg5 {[%clk 0:02:51]}  a6 {[%clk 0:02:50]} 7. a4 {[%clk 0:02:47]}  Ba7 {[%clk 0:02:48]} 8. a5 {[%clk 0:02:47]}  h6 {[%clk 0:02:42]} 9. Bh4 {[%clk 0:02:47]}  g5 {[%clk 0:02:42]} 10. Bg3 {[%clk 0:02:47]}  h5 {[%clk 0:02:11]} 11. h4 {[%clk 0:02:46]}  g4 {[%clk 0:02:04]} 12. Ng5 {[%clk 0:02:23]}  Rf8 {[%clk 0:00:43]} 13. Qb3 {[%clk 0:02:21]}  Qe7 {[%clk 0:00:38]} 14. O-O {[%clk 0:02:08]}  Nd8 {[%clk 0:00:37]} 15. Kh1 {[%clk 0:02:02]}  c6 {[%clk 0:00:35]} 16. f3 {[%clk 0:01:59]}  Ne6 {[%clk 0:00:31]} 17. Nd2 {[%clk 0:01:50]}  Nc5 {[%clk 0:00:20]} 18. Qa2 {[%clk 0:01:42]}  Be6 {[%clk 0:00:16]} 19. Nxe6 {[%clk 0:01:35]}  Nxe6 {[%clk 0:00:16]} 20. Rae1 {[%clk 0:01:22]}  O-O-O {[%clk 0:00:15]} 21. Nb3 {[%clk 0:01:11]}  Nf4 {[%clk 0:00:15]} 22. d4 {[%clk 0:01:08]}  Nd7 {[%clk 0:00:10]} 23. fxg4 {[%clk 0:01:01]}  hxg4 {[%clk 0:00:08]} 24. Kg1 {[%clk 0:00:59]} 1-0


[Site "https://www.chess.com"]